Cogmind - Beta 17 @@@ ROGUE MODE // 2026.07.13 @ 23:16:29 Player: aperiodic Result: Destroyed by 0K-F86(h) with Bolt Gun Performance ------------- Evolutions (0) 0 Regions Visited (4) 800 Robots Destroyed (28) 140 Value Destroyed (513) 513 Prototype IDs (38) 760 Alien Tech Used (0) 0 Bonus (608) 608 TOTAL SCORE: 2821 Bonus ------- Follower Combat Kills 24 Registered with UFD 300 Met Optimus in HQ 500 Friendly Fire -216 Cogmind --------- Core Integrity 0/250 Matter 258/300 Energy 350/350 System Corruption 0% Temperature Warning (311) Movement Core (800) Ox15 Location -8/Scraptown Parts ------- > --- POWER (1+1) ------ Cooled Fission Core (fused) > --- PROPULSION (2+1) - (None) > --- UTILITY (2+1) ---- Large Storage Unit Master Drone Bay (1/1) (+) Rainbow Chip > --- WEAPON (2+1) ----- Phase Gun (fused) Heavy Wave Gun (fused) > --- INVENTORY (15) --- Overtuned Huge Scrapsphere Scrap Suit Makeshift Microdissipator Network Improved Heavy Armor Plating Makeshift Hacking Suite Tech Extrapolator CPS Tube (2) CPS Tube (2) CPS Tube (2) Multitool Junk Cannon (10) Peak State ------------ > --- POWER ------------ Cooled Fission Core > --- PROPULSION ------- Armored Wheel Armored Wheel > --- UTILITY ---------- Large Storage Unit Master Drone Bay Rainbow Chip > --- WEAPON ----------- Phase Gun Heavy Wave Gun > --- INVENTORY -------- Overtuned Huge Scrapsphere Scrap Suit Improved Heavy Armor Plating Makeshift Hacking Suite Tech Extrapolator CPS Tube CPS Tube CPS Tube Multitool Junk Cannon Botcube [Rating: 56] Favorites ----------- Power Light Ion Engine Engine Light Ion Engine Power Core Cooled Fission Core Reactor Hybrid Antimatter Reactor Propulsion Wheel Treads Light Treads Wheel Wheel Utility Medium Storage Unit Device Seismic Detector Storage Medium Storage Unit Processor Rainbow Chip Hackware Hacking Suite Protection Light Armor Plating Weapon Small Laser Energy Gun Small Laser Energy Cannon Subdweller Beam Cannon Ballistic Gun Light Assault Rifle Launcher Heavy Rocket Launcher Special Weapon Mining Laser Impact Weapon Shock Maul Piercing Weapon Makeshift Spear Build | -11 -10 -10 -8 -8 ------- Run | Yrd Mat Sub Rec Scr Slots Evolved . | . . . . . Power . | . . . . . Propulsion . | . . . . . Utility . | . . . . . Weapon . | . . . . . Parts Attached 43 | 9 11 11 1 11 Power 3 | 1 . 1 . 1 Engine 2 | 1 . 1 . . Core 1 | . . . . 1 Reactor . | . . . . . Propulsion 15 | 4 5 3 1 2 Treads 2 | . 2 . . . Leg . | . . . . . Wheel 13 | 4 3 3 1 2 Hover . | . . . . . Flight . | . . . . . Utility 10 | 2 2 1 . 5 Device 4 | 1 . 1 . 2 Storage 3 | 1 1 . . 1 Processor 1 | . . . . 1 Hackware 1 | . . . . 1 Protection 1 | . 1 . . . Artifact . | . . . . . Weapon 15 | 2 4 6 . 3 Energy Gun 4 | 1 . 3 . . Energy Cannon 1 | . . 1 . . Ballistic Gun 3 | 1 1 1 . . Ballistic Cannon . | . . . . . Launcher . | . . . . . Special Weapon 6 | . 3 . . 3 Impact Weapon . | . . . . . Slashing Weapon . | . . . . . Piercing Weapon 1 | . . 1 . . Special Melee Weapon . | . . . . . Unidentified Prototypes 2 | . . . . 2 Parts Lost 8 | . 2 6 . . Power 1 | . . 1 . . Propulsion 4 | . 1 3 . . Utility 1 | . . 1 . . Weapon 2 | . 1 1 . . Highest Loss Streak 2 | . 1 2 . . To Critical Strikes . | . . . . . Average Backups 9 | 5 8 8 9 9 Power . | . . . . . Propulsion 2 | 3 4 2 2 1 Utility 1 | . 1 1 1 2 Weapon 3 | . 2 4 3 2 Tool/Special . | . . . . . Unused Backups 18 | 1 1 2 . 14 Power 1 | . 1 . . . Propulsion 3 | 1 . . . 2 Utility 5 | . . . . 5 Weapon 4 | . . 2 . 2 Tool/Special 5 | . . . . 5 Average Slot Usage (%) 85 | . 99 85 100 78 Engine 5 | . 14 1 14 3 Core 1 | . . . . 4 Reactor 1 | . . . . 3 Wheel 21 | . 26 27 28 14 Device 9 | . 13 10 . 6 Storage 13 | . 14 14 14 13 Protection 3 | . . 1 14 5 Energy Gun 11 | . 13 13 16 8 Energy Cannon 1 | . . . 11 3 Ballistic Gun 1 | . 5 2 . . Launcher 3 | . . . . 7 Special Weapon 2 | . 9 . . 2 Piercing Weapon 4 | . . 11 . 1 Peak Build Rating 56 | 7 8 17 16 56 Average Rating 17 | 6 7 10 15 28 On Entrance 9 | . 7 8 15 16 Avg Prop Armor Cover (%) 10 | . . 10 . . Naked Turns . | . . . . . Heaviest Build 56 | 11 18 29 29 56 Greatest Support 40 | 32 40 26 26 24 Greatest Overweight (x) 18 | . . 1 1 18 Average Overweight (x) 1 | . . . . 2 Largest Inventory Capacity 15 | 8 10 10 10 15 Average Capacity 11 | 7 8 10 10 13 Most Carried 15 | 8 10 10 10 15 Average Carried 10 | 5 8 9 9 13 Final Capacity 15 | 8 10 10 10 15 Final Carried 15 | 8 10 10 10 15 Transmogrified Parts 36 | . . . . 36 Integrity Recovered 145 | . . . . 145 Class Distribution -------------------- 64% | Mutant 35% | Scavenger-Mutant Dominant Class ---------------- Mutant | -10/Materials Scavenger-Mutant | -10/Subcaves Scavenger-Mutant | -8/Recycling Mutant | -8/Scraptown Resources | -11 -10 -10 -8 -8 ----------- Run | Yrd Mat Sub Rec Scr Matter Collected 1111 | 316 317 213 55 210 Remotely . | . . . . . Salvage Created 974 | 182 232 216 62 282 Parts 76 | 22 15 16 3 20 Haulers Intercepted . | . . . . . Recyclers Shooed 1 | 1 . . . . Parts Field Recycled . | . . . . . Retrieved Matter . | . . . . . Parts Self-Destructed 7 | . . 7 . . Prevented . | . . . . . Parts Restored . | . . . . . Kills | -11 -10 -10 -8 -8 ------- Run | Yrd Mat Sub Rec Scr Combat Hostiles Destroyed 14 | . 4 7 . 3 Melee 1 | . . 1 . . Guns 13 | . 4 6 . 3 Classes Destroyed 13 | 3 5 2 . 3 Worker 2 | 1 1 . . . Builder 1 | . 1 . . . Tunneler 7 | 7 . . . . Recycler 1 | 1 . . . . Operator 1 | . 1 . . . Watcher 2 | . 2 . . . Swarmer 5 | . 2 3 . . Grunt 2 | . 2 . . . Artisan 1 | . . 1 . . Subdweller 4 | . . 4 . . Federalist 1 | . . . . 1 Explorer 1 | . . . . 1 Guru 1 | . . . . 1 Best Kill Streak 4 | 4 2 3 . 1 Combat Bots Only 3 | . 1 3 . 1 Max Kills in Single Turn 1 | 1 1 1 . 1 Gunslinging . | . . . . . Exploded . | . . . . . Melee 1 | . . 1 . . Uniques/NPCs Destroyed . | . . . . . Combat | -11 -10 -10 -8 -8 -------- Run | Yrd Mat Sub Rec Scr Hostile Shots Fired 114 | . 39 39 . 36 Missed 33 | . 13 12 . 8 Hits 81 | . 26 27 . 28 Projectile 81 | . 26 27 . 28 AOE 1 | . . 1 . . Critical Strikes 5 | . 2 1 . 2 Damage Taken 1178 | . 308 500 . 370 Core 254 | . 85 108 . 61 Absorbed by Shields . | . . . . . Core Remaining (%) 100 | 100 . . . . Volleys Fired 151 | 26 75 17 13 20 Largest 2 | 2 2 2 1 2 Hottest 176 | 60 100 100 80 176 Shots Fired 222 | 52 101 25 13 31 Gun 158 | 52 58 19 . 29 Cannon 16 | . . 3 13 . Launcher . | . . . . . Special 48 | . 43 3 . 2 Kinetic 66 | 26 32 8 . . Thermal 151 | 26 69 14 13 29 Explosive . | . . . . . Electromagnetic 3 | . . 3 . . Robot Hit Streak 14 | 12 6 10 11 14 Robot Miss Streak 4 | 2 4 3 . 3 Penetration Max . | . . . . . Secondary Targets 4 | . 2 1 . 1 Max Gunslinging Chain 1 | . 1 1 . 1 Shots Hit Robots 107 | 36 30 19 1 21 Core Hits 47 | 16 14 12 1 4 Critical Kills . | . . . . . Critical Parts Destroyed . | . . . . . Critical Strikes 2 | . . . . 2 Impale 2 | . . . . 2 Melee Attacks 38 | . . 34 . 4 Impact . | . . . . . Slashing . | . . . . . Piercing 38 | . . 34 . 4 Sneak Attacks 1 | . . 1 . . Combat Hostiles . | . . . . . Follow-up Attacks . | . . . . . Damage Inflicted 1751 | 343 319 364 27 698 Guns 1285 | 343 319 141 . 482 Cannons 27 | . . . 27 . Explosions . | . . . . . Melee 439 | . . 223 . 216 Ramming . | . . . . . Kinetic 297 | 117 137 43 . . Thermal 964 | 226 182 47 27 482 Explosive . | . . . . . Electromagnetic 51 | . . 51 . . Impact . | . . . . . Slashing . | . . . . . Piercing 439 | . . 223 . 216 Highest Corruption . | . . . . . Average Corruption . | . . . . . Corruption Purged . | . . . . . Corruption Blocked . | . . . . . Overload Shots . | . . . . . Overflow Damage 110 | . . . . 110 Projectiles . | . . . . . Explosions . | . . . . . Melee 110 | . . . . 110 Knockbacks . | . . . . . Impact . | . . . . . Kinetic . | . . . . . Secondary . | . . . . . Self-Inflicted Damage . | . . . . . Shots . | . . . . . Rammed . | . . . . . Targets Rammed . | . . . . . Kicked . | . . . . . Crushed . | . . . . . Highest Temperature 621 | 40 250 . 261 621 Average Temperature 88 | 21 48 . 104 212 Received Heat Transfer 436 | . 186 75 . 175 Effects 6 | . 1 . . 5 Shutdowns 1 | . . . . 1 Energy Bleed 1 | . . . . 1 Interference 2 | . 1 . . 1 Matter Decay 1 | . . . . 1 Short Circuit 1 | . . . . 1 Siege Activations . | . . . . . Martial Activations . | . . . . . Shielding Activations . | . . . . . Robots Disrupted . | . . . . . Combat Hostiles . | . . . . . Robots Corrupted . | . . . . . Combat Hostiles . | . . . . . Parts Fried . | . . . . . Impact Corruptions . | . . . . . Robots Melted . | . . . . . Combat Hostiles . | . . . . . Parts Melted 2 | . 1 1 . . Heat Transferred 1632 | 525 400 100 37 570 Parts Sabotaged . | . . . . . Parts Stolen . | . . . . . Parts Stripped . | . . . . . Power Chain Reactions . | . . . . . Alert | -11 -10 -10 -8 -8 ------- Run | Yrd Mat Sub Rec Scr Maximum Alert Level . | . . . . . Low Security (%) 100 | 100 100 . 100 . Level 1 . | . . . . . Level 2 . | . . . . . Level 3 . | . . . . . Level 4 . | . . . . . Level 5 . | . . . . . High Security . | . . . . . Max Security . | . . . . . Peak Influence 114 | 10 114 . 61 . Initial 7 | . . . 7 . Average 20 | 2 22 . 22 . Influence Increases 639 | 45 322 105 167 . Destroy 0b10 Robot/C 140 | . 80 60 . . Destroy 0b10 Robot/NC 75 | 45 25 . 5 . Destroy Leader 14 | . 14 . . . Successful Hack 34 | . 30 . 4 . Select Force Hacks 180 | . 30 . 150 . Destroy Structure 46 | . 38 . 8 . Lose Combat Pursuer 150 | . 105 45 . . Influence Decreases 639 | 45 214 198 182 . Entered New Map 60 | . . 52 8 . Time Decay 539 | 45 194 126 174 . Lost Part 40 | . 20 20 . . Squads Dispatched 4 | . 4 . . . Investigation 3 | . 3 . . . Extermination . | . . . . . Reinforcement 1 | . 1 . . . Assault . | . . . . . Garrison . | . . . . . Intercept . | . . . . . Searches Triggered . | . . . . . Construction Impeded . | . . . . . Haulers Reinforced . | . . . . . Active Scanning Responses . | . . . . . Cargo Convoy Interrupts . | . . . . . Stealth | -11 -10 -10 -8 -8 --------- Run | Yrd Mat Sub Rec Scr Distress Signals 2 | . 2 . . . Communications Jammed . | . . . . . Distress Signals . | . . . . . Times Spotted 42 | . 13 12 . 17 Peak Tracking Total 7 | . 3 6 . 7 Tactical Retreats 7 | . 4 3 . . Traps | -11 -10 -10 -8 -8 ------- Run | Yrd Mat Sub Rec Scr Traps Triggered 4 | . 2 2 . . Indirectly . | . . . . . Trap Hack Attempts . | . . . . . Triggered . | . . . . . Disarmed . | . . . . . Reprogrammed . | . . . . . Reused 1 | . . . . 1 Traps Extracted . | . . . . . Installed 1 | . . . . 1 Triggered . | . . . . . Most Traps Carried 1 | . . 1 1 1 Machines | -11 -10 -10 -8 -8 ---------- Run | Yrd Mat Sub Rec Scr Machines Disabled 2 | . . 1 . 1 Max in Single Turn 1 | . . 1 . 1 Machines Repaired . | . . . . . Machines Dismantled . | . . . . . Machines Sabotaged . | . . . . . Overloaded Fab Kills . | . . . . . Hacking | -11 -10 -10 -8 -8 --------- Run | Yrd Mat Sub Rec Scr Machines Accessed 22 | . 9 1 9 3 Terminals 11 | . 7 . 4 . Fabricators . | . . . . . Repair Stations . | . . . . . Recycling Units 7 | . 2 . 5 . Scanalyzers . | . . . . . Garrison Access . | . . . . . Total Hacks 59 | . 35 1 20 3 Successful 37 | . 19 1 14 3 Failed 22 | . 16 . 6 . Catastrophic 4 | . 1 . 3 . Database Lockouts . | . . . . . Manual 50 | . 30 . 20 . Terminals 46 | . 31 . 15 . Fabricators . | . . . . . Repair Stations . | . . . . . Recycling Units 9 | . 4 . 5 . Scanalyzers . | . . . . . Garrison Access . | . . . . . Terminal Hacks 13 | . 6 1 3 3 Record 2 | . . . . 2 Part Schematic 1 | . 1 . . . Robot Analysis 3 | . 2 . 1 . Prototype ID Bank 1 | . 1 . . . Terminal Index 3 | . 1 . 2 . Zone Layout 1 | . 1 . . . Proto ID Catalog 2 | . . 1 . 1 Fabricator Hacks . | . . . . . Repair Station Hacks . | . . . . . Recycling Unit Hacks 2 | . 2 . . . Retrieve Components 2 | . 2 . . . Scanalyzer . | . . . . . Garrison Access Hacks . | . . . . . Unauthorized Hacks 22 | . 11 . 11 . Terminals 16 | . 10 . 6 . Track 1 | . 1 . . . Botnet 4 | . 3 . 1 . Operators 2 | . 1 . 1 . Skim 9 | . 5 . 4 . Fabricators . | . . . . . Repair Stations . | . . . . . Recycling Units 6 | . 1 . 5 . Tunnel 6 | . 1 . 5 . Scanalyzers . | . . . . . Garrison Access . | . . . . . Data Cores Recovered . | . . . . . Used . | . . . . . Hacking Detections 11 | . 8 . 3 . Full Trace Events . | . . . . . Feedback Events . | . . . . . Feedback Blocked . | . . . . . Robot Schematics Acquired . | . . . . . Robots Built . | . . . . . Authchips . | . . . . . Time . | . . . . . Total Robot Build Rating . | . . . . . Part Schematics Acquired 1 | . 1 . . . Parts Built . | . . . . . Authchips . | . . . . . Time . | . . . . . Total Part Build Rating . | . . . . . Part Studies Acquired . | . . . . . Parts Repaired . | . . . . . Time . | . . . . . Parts Recycled . | . . . . . Recycled Matter . | . . . . . Retrieved Matter . | . . . . . Retrieved Components 20 | . 20 . . . Parts Scanalyzed . | . . . . . Part Schematics Acquired . | . . . . . Parts Damaged . | . . . . . Bothacking | -11 -10 -10 -8 -8 ------------ Run | Yrd Mat Sub Rec Scr Used RIF Installer . | . . . . . Robots Hacked . | . . . . . Non-combat . | . . . . . Combat . | . . . . . Robot Hacks Applied . | . . . . . Relay Couplers Released . | . . . . . Fabnet Peak Effective % . | . . . . . Robots Rewired . | . . . . . Allies Hacked . | . . . . . Hacks Repelled . | . . . . . Allies | -11 -10 -10 -8 -8 -------- Run | Yrd Mat Sub Rec Scr Total Allies 1 | . . . . 1 Largest Group 1 | . . . . 1 Highest-Rated Group 45 | . . . . 45 Highest-Rated Ally 45 | . . . . 45 Total Orders . | . . . . . Ally Attacks 8 | . . . . 8 Total Damage 133 | . . . . 133 Kills 1 | . . . . 1 Allies Corrupted . | . . . . . Allies Melted 1 | . . . . 1 Intel | -11 -10 -10 -8 -8 ------- Run | Yrd Mat Sub Rec Scr Active Infowar (turns) 5367 | 241 2131 2995 . . Structural 2407 | . . 2407 . . Seismic 2960 | 241 2131 588 . . Robot Analysis Total 3 | . 2 . 1 . Derelict Logs Recovered 3 | . . . . 3 Drone Launches 1 | . . . . 1 Drone Recoveries 1 | . . . . 1 Exploration | -11 -10 -10 -8 -8 ------------- Run | Yrd Mat Sub Rec Scr Turns Passed 11506 | 287 2240 3799 394 4786 Spaces Moved 5222 | 174 750 1375 361 2562 Core 270 | 3 . . . 267 Treads 9 | . 9 . . . Legs . | . . . . . Wheels 4943 | 171 741 1375 361 2295 Hover . | . . . . . Flight . | . . . . . Fastest Speed 50 | 50 80 80 90 80 Average Speed 127 | 96 81 87 98 168 Slowest Speed 950 | 100 160 115 105 950 Overloaded Moves . | . . . . . Propulsion Burnouts . | . . . . . Robots Hopped . | . . . . . Potential Cave-ins . | . . . . . Cave-ins Triggered . | . . . . . Exploration Rate (%) 60 | 5 89 46 71 89 Regions Visited 4 Branch Regions 3 Pre-discovered Areas 8 | . 1 1 5 1 Known Exits Taken 1 | . 1 . . . Unknown Exits Taken 3 | 1 . 1 1 . Scrap Searched 8 | . . 7 . 1 Spaces Dug 46 | . 34 3 9 . Terrain Destroyed 65 | . 43 3 12 7 Melee 1 | . . 1 . . Projectile 64 | . 43 2 12 7 AOE . | . . . . . Terrain Rammed . | . . . . . Walls Destroyed . | . . . . . Machines Disabled . | . . . . . Actions | -11 -10 -10 -8 -8 --------- Run | Yrd Mat Sub Rec Scr Total 9735 | 243 2185 3909 385 3013 Wait 4143 | 23 1318 2438 6 358 Move 5218 | 173 749 1374 360 2562 Hop . | . . . . . Pick Up 45 | 10 6 13 1 15 Fast Attach 19 | 7 . 3 . 9 Attach 18 | 1 2 5 . 10 Detach 7 | . . . . 7 Swap 49 | 1 29 14 3 2 Drop 44 | 2 6 11 2 23 Fire 151 | 26 75 17 13 20 Melee 38 | . . 34 . 4 Ram . | . . . . . Kick . | . . . . . Crush . | . . . . . Escape Stasis . | . . . . . Rewire 2 | . . . . 2 Trap 1 | . . . . 1 Miscellaneous . | . . . . . Route ------- -11/Scrapyard -10/Materials (discovered 6 exits: *Mat x3 / *Min x2 / *Sub) -10/Subcaves (discovered 2 exits: [*Mat] / *Rec) -8/Recycling -8/Scraptown (discovered 2 exits: [*Fac x2]) History --------- Turn | Location | Event 12 | -11/Scrapyard | Discovered new exit (range 14) 288 | -11/Scrapyard | Entered Materials 300 | -10/Materials | Build established: Mutant 636 | -10/Materials | Discovered new exit (range 11) 1088 | -10/Materials | Derelicts attacked the area 1626 | -10/Materials | Discovered new exit (range 18) 1700 | -10/Materials | Learned Storage stockpile data 1762 | -10/Materials | Learned location of 2 exits from Mines 1815 | -10/Materials | Identified exit to Subcaves 1885 | -10/Materials | Learned 4 Subcaves zone layouts 1895 | -10/Materials | Discovered new exit (range 3) 1902 | -10/Materials | Identified exit to Materials 1902 | -10/Materials | Identified exit to Mines 1968 | -10/Materials | Learned 4 Recycling zone layouts 2528 | -10/Materials | Entered Subcaves 2586 | -10/Subcaves | A swath of the cavern ceiling suddenly collapsed 2607 | -10/Subcaves | Learned location of Zion (-6) 2607 | -10/Subcaves | Met a Zionite searching for "candidates" 2679 | -10/Subcaves | Discovered new exit (range 9) 2857 | -10/Subcaves | Core integrity fell below 50% 2874 | -10/Subcaves | Build established: Scavenger-Mutant 3109 | -10/Subcaves | Shifting Twisted Machinery released Riot Gun 3148 | -10/Subcaves | Shifting Twisted Machinery released Battle Cannon 3157 | -10/Subcaves | A swath of the cavern ceiling suddenly collapsed 3450 | -10/Subcaves | Build established: Mutant 4576 | -10/Subcaves | Visited 4L-MR0's lab 4582 | -10/Subcaves | Found Prototype Device 4590 | -10/Subcaves | Found Rainbow Chip 4659 | -10/Subcaves | Discovered new exit (range 4) 4981 | -10/Subcaves | Build established: Scavenger-Mutant 5877 | -10/Subcaves | Disturbed a concealed Subdweller 6009 | -10/Subcaves | Disturbed a concealed Subdweller 6327 | -10/Subcaves | Entered Recycling 6591 | -8/Recycling | Scanned before Scraplab entrance 6709 | -8/Recycling | Entered Scraplab 6718 | -8/Recycling | Discovered new exit (range 3) 6721 | -8/Recycling | Entered Scraptown 6939 | -8/Scraptown | Scanned Subdweller tech in exchange for log data 6943 | -8/Scraptown | Learned Factory terminal intel 6944 | -8/Scraptown | Learned Research terminal intel 6958 | -8/Scraptown | Discovered new exit (range 5) 7062 | -8/Scraptown | Visited Symbiants 7083 | -8/Scraptown | Visited Cyclists 7107 | -8/Scraptown | Heard Great Nut preacher, LISTEN AND RECITE! 7132 | -8/Scraptown | Visited UFD Registry 7205 | -8/Scraptown | Registered with UFD as "Steamshell" 7238 | -8/Scraptown | Entered Cyclist Reading Room 7288 | -8/Scraptown | Visited TADAMA 7487 | -8/Scraptown | Visited Botcube Research 7515 | -8/Scraptown | Visited LU-1G1's Boring Crew 7532 | -8/Scraptown | Visited Chapter 10 7561 | -8/Scraptown | Visited Observation Area 7614 | -8/Scraptown | Visited Scrap Suit Storage 7647 | -8/Scraptown | Visited Junk Repository 7802 | -8/Scraptown | Visited Junk Cannon Lab 7818 | -8/Scraptown | Found Prototype Special Weapon 7818 | -8/Scraptown | Identified Junk Cannon 7856 | -8/Scraptown | Visited Scrapoid Research Area 7883 | -8/Scraptown | Visited Science Guys 8013 | -8/Scraptown | Attached CPS modules to 08S02-D 8119 | -8/Scraptown | Build established: Mutant 8292 | -8/Scraptown | Found Botcube 8405 | -8/Scraptown | Discovered new exit (range 5) 8630 | -8/Scraptown | Attached CPS modules to 08S01-D 8724 | -8/Scraptown | Warned about trapping Scraptown 8747 | -8/Scraptown | Identified Sfc. Transmogrifier 10858 | -8/Scraptown | Attached Rainbow Chip, gained temporary slots: Power, Propulsion, Utility, Weapon 10911 | -8/Scraptown | Found Scrap Suit 10938 | -8/Scraptown | Met Optimus 10938 | -8/Scraptown | Accepted into 0bPrime 11338 | -8/Scraptown | Civil war broke out across Scraptown 11342 | -8/Scraptown | Found Master Drone Bay 11360 | -8/Scraptown | Core integrity fell below 20% 11386 | -8/Scraptown | Lost 3 allies 11430 | -8/Scraptown | Botcube activated 11446 | -8/Scraptown | Botcube completed mutation into treaded form, armed with 1 gun, 1 melee weapon. 11469 | -8/Scraptown | Lost 3 allies 11507 | -8/Scraptown | Destroyed by 0K-F86(h) with Bolt Gun Last Messages --------------- 11476_ Bolt penetrates Q1-9K7(j). 11477_ Machine disabled. 11486_ Q1-9K7(j) destroyed. 11490_ ZP-HS9(g) destroyed. 11491_ Power failure, Cld. Fission Core shutdown. 11492_ Critical hit (Burn: +50). 11495_ Bolt penetrates Mutated Botcube. 11495_ Mutated Botcube suffers critical hit (Burn). 11495_ Mutated Botcube overheating. 11496_ Arm. Wheel broken. 11496_ Overheating: Short circuit. 11496_ Dropped Broken Arm. Wheel. 11496_ Dropped Arm. Wheel. 11496_ Mutated Botcube overheating. 11497_ Overheating: Energy bleed (-32). 11497_ Bolt penetrates Mutated Botcube. 11498_ Overheating: Matter decay (-42). 11505_ Bolt penetrates Wall. Map ----- +----------------------------------------------------+ | #?#"" ""#??????## ###" "#" | | ###""" """######## ##"""""" ""#"" """" | | | | | | | | ###### ########### ##########"" """"## | | ###### ######????## ##????????#" "#? | | #""""" """""#####?# #########?#" ""#? | | #" " " #?# """"""""#?#" """#? | | #""" ""#" " " "### ### " ""#?#" """#? | | #""" "#" " " "#"" """%* "#?#"""""""#? | | #""" "#""""" """""#" """! " ""#?#######??? | | #"" "###### ######" %= """"""""#??????????? | | #? "#""""" """""#" ! ##"""####??????????? | | #?"" ""#" " " "#" ""= !![######?????????????? | | #??# ###" " " "#" !=%#????########??????? | | #??# " " "#"""""!%*[##???# # # ##""???? | | #??#####""""" """""#######!!*"#??## " " ##""""?? | | ##?????###### ######????#"%%/!???#" "#""""" | | ############ ###########"=%/#???# # """" | | !!%##??# # """" | | !/=!=#??# =% # | | #########################[!!#???# # | | ##??????????????????????#!%==#???# # =% ? | | ########???????????????###j=[######""## #"!%%#### | | """""""#???????????????#@== = [*%[[ | | " "#???????######### *%= [!=!= *! | | ]* "#???????" "; !=% !% !!&%== | | " [![ "#???????" " " ! =!*%![[ | | " ! "#???????? "" "# = !*!=%%= | | " !! "#??????????"" "# % ;##;###########*#= % | | " ! "#?????????? "# %=! #####?????????### | | " ! [ "#?????????" ?#/=%* #???????????????# | | " "#?????????" ?#*=[! #???????????????# | | """" ""#?????????" ??#=%= #???????????????# | | #### ###????????? "???# ! #???????????????# | | #### ###????????###????# #???????????????# | | """" ""#???????????????# #???"""?????????# | | " "#?????########### #?"" ????????# | | " "" "#?????#"""""""" # #?" ???????# | | " "" "#?????#""""""" # ! # " ???????# | | " "#?????#"" # *[%=# " "??????# | | ""#?????#"" # " "??????# | | " """""#?????#""" # # "" "???????# | | """""""#?????#"X # # """"?????????# | | """"""???????#"" # #? ??????????# | | ######???????#""" # ################# | | ########?????#"" # | | #"""X""#?????#"" | | #" "#?????#""""""" # | +----------------------------------------------------+ Best States ------------- Heat Dissipation 25 Energy Generation 23 Energy Capacity 1100 Matter Stores 300 Matter Capacity 300 Sight Range 16 Terrain Scan Density 10 Armor Coverage 150 Evasion (%) 44 Recoil Reduction 2 Offensive Hacking 10 Item Schematics ----------------- Med. Storage Unit | -10/Materials | Hacked Robot Schematics ------------------ None Fabricated ------------ Nothing Repaired ---------- Nothing Studied --------- None Alien Tech Used ----------------- None Achievements -------------- Frankenstein Challenges ------------ None Game ------ Seed ShadingTargetMount Manual? 0 Play Time 01:31:42 Cumulative 717.3 hours Start 2026.07.13 @ 21:14:07 End 2026.07.13 @ 23:16:29 Sessions 1 Manual Loads 0 Difficulty Rogue Special Mode None Game No. 246 Rogue 242 Adventurer 4 Explorer 0 Win Type - Total 21 Types 9/2/6/0/0/0/2/2/0/0 Lore% 77 Gallery% 74 Achievement% 55 Wizard Run 0 Options --------- Layout 1 ASCII 0 Keyboard 0 Movement Arrows Keybinds 0 Fullscreen 1 Font 40/SmallcapsGlow Map View 50x40 Zoom Use 0% Tactical HUD 1 Map Filters NONE Filters NONE Steam 1 RUN: d3a66d53-8b32-4c43-93f6-e2bb56ff47ce